bitfinex-derivatives/quotes_SOLF0:USTF0_20241227
["timestamp","ask_amount","ask_price","bid_price","bid_amount"]
[1735320430374,3.1135,185.19,185.11,3.68]
[1735320430771,2.7054,185.17,185.11,3.68]
[1735320430976,3.1135,185.19,185.11,3.68]
[1735320431178,1.5423,185.2,185.13,2.7059]
[1735320431583,1.5423,185.2,185.11,3.68]
[1735320431774,2.7059,185.14,185.12,3.68]
[1735320431974,2.7059,185.14,185.13,3.68]
[1735320432175,3.2067,185.19,185.13,1.1483]
[1735320432972,2.7061,185.13,185.12,3.68]
[1735320433381,2.7061,185.13,185.12,1.1482]
[1735320433577,3.2067,185.19,185.1,3.68]
[1735320433778,3.2067,185.19,185.06,3.68]
[1735320434083,3.2067,185.19,185.02,3.68]
[1735320434283,0.88540368,185.18,185.02,3.68]
[1735320434888,0.88540368,185.18,184.95,3.2057]
[1735320435083,2.7071,185.06,184.99,2.708]
[1735320435484,2.7071,185.06,185.05,0.19317]
[1735320435689,2.7071,185.06,185.05,3.87317]
[1735320436796,38.46701069,185.34,185.05,3.87317]
[1735320436995,1.5826,185.21,185.06,1.6357]
[1735320437796,2.7051,185.2,185.06,1.6357]
[1735320438097,2.7051,185.2,185.07,4.0]
[1735320439194,1.5826,185.26,185.07,4.0]
[1735320439396,2.7051,185.2,185.07,4.0]
[1735320440097,1.5826,185.26,185.07,4.0]
[1735320440297,2.7051,185.19,185.07,4.0]
[1735320440493,2.7051,185.19,185.1,2.7063]
[1735320440794,2.7051,185.19,185.07,4.0]
[1735320441500,1.5826,185.26,185.11,2.7062]
[1735320441800,1.5826,185.26,185.07,4.0]
[1735320441998,0.88511143,185.25,185.07,4.0]
[1735320442199,1.5826,185.26,185.06,1.6357]
[1735320442395,0.88513637,185.25,185.07,4.0]
[1735320442592,210.32,185.42,185.07,4.0]
[1735320442798,1.5452,185.32,185.08,1.5978]
[1735320442990,1.5452,185.32,185.09,0.99409541]
[1735320443297,2.7038,185.28,185.15,2.7056]
[1735320443500,1.5452,185.32,185.16,63.4768]
[1735320444294,1.5452,185.32,185.17,1.5978]
[1735320444496,2.704,185.27,185.21,2.7048]
[1735320444695,2.704,185.27,185.22,4.0]
[1735320444900,2.7038,185.29,185.22,6.7047]
[1735320445198,2.7038,185.29,185.22,4.0]
[1735320445496,2.7035,185.3,185.22,4.0]
[1735320446002,1.5452,185.32,185.22,4.0]
[1735320446197,2.7037,185.29,185.23,2.7045]
[1735320446398,194.0,185.46,185.22,4.0]
[1735320446600,4.7777,185.51,185.23,1.0797387]
[1735320446996,2.7015,185.44,185.31,2.7033]
[1735320447304,4.7777,185.51,185.32,5.6488]
[1735320447601,4.7777,185.51,185.33,4.0]
[1735320448005,4.7777,185.51,185.32,1.6488]
[1735320448199,4.7777,185.51,185.33,4.0]
[1735320448395,2.7019,185.42,185.34,6.7029]
[1735320448607,4.7777,185.51,185.35,4.0]
[1735320448806,4.7777,185.51,185.36,4.0]
[1735320449101,4.7777,185.51,185.39,2.7021]
[1735320449308,4.7777,185.51,185.4,4.0]
[1735320449807,2.7017,185.43,185.4,4.0]
[1735320450001,4.7777,185.51,185.4,4.0]
[1735320451403,3.2079,185.51,185.4,4.0]
[1735320451605,4.2837,185.51,185.44,2.7015]
[1735320451804,2.7006,185.51,185.44,2.7015]
[1735320452008,4.9665,185.64,185.41,1.6258]
[1735320452307,0.88341214,185.63,185.41,1.6258]
[1735320452905,4.9665,185.64,185.41,1.6258]
[1735320453608,2.7001,185.54,185.41,1.6258]
[1735320454106,2.6996,185.57,185.41,1.6258]
[1735320454509,4.9665,185.64,185.46,2.7014]
[1735320454710,0.88313192,185.63,185.47,4.24]
[1735320455409,4.9665,185.64,185.47,4.24]
[1735320455610,0.88318527,185.62,185.47,4.24]
[1735320455808,2.7009,185.5,185.47,4.24]
[1735320456007,4.24,185.59,185.44,4.24]
[1735320456207,1.6142,185.49,185.44,4.24]
[1735320457310,2.7014,185.47,185.44,4.24]
[1735320457710,1.6142,185.49,185.44,4.24]
[1735320457906,4.24,185.59,185.44,4.24]
[1735320458103,2.43461418,185.58,185.44,4.24]
[1735320458310,1.5512,185.58,185.44,4.24]
[1735320458511,2.7008,185.51,185.44,6.9417]
[1735320458708,1.5512,185.58,185.44,6.9417]
[1735320459610,1.5512,185.58,185.44,4.24]
[1735320459809,6.22215335,185.66,185.45,4.24]
[1735320460011,1.5512,185.57,185.45,4.24]
[1735320460210,2.7007,185.52,185.45,4.24]
[1735320460412,3.2756,185.56,185.45,4.24]
[1735320460811,2.7009,185.51,185.45,4.24]
[1735320461012,3.2756,185.56,185.45,4.24]
[1735320462018,2.7006,185.52,185.46,2.7015]
[1735320462812,3.2756,185.56,185.45,4.24]
[1735320463116,3.2756,185.56,185.46,4.24]
[1735320463318,3.2756,185.56,185.47,4.24]
[1735320463718,3.2756,185.56,185.35,1.5329]
[1735320464416,3.2756,185.56,185.36,4.24]
[1735320464620,2.701,185.5,185.36,4.24]
[1735320464812,0.88357881,185.55,185.36,4.24]
[1735320465008,3.2756,185.56,185.36,4.24]
[1735320465213,2.7011,185.49,185.36,6.9428]
[1735320465413,3.2756,185.56,185.36,4.24]
[1735320465618,0.88366073,185.55,185.36,4.24]
[1735320466518,0.88372265,185.54,185.36,4.24]
[1735320466711,3.2756,185.56,185.33,2.29079742]
[1735320466913,2.703,185.36,185.34,4.24]
[1735320467118,16.32,185.55,185.34,4.24]
[1735320467616,2.7029,185.37,185.34,4.24]
[1735320467817,4.24,185.51,185.34,4.24]
[1735320468019,4.24,185.51,185.32,4.24]
[1735320468020,20.56,185.51,185.32,4.24]
[1735320468220,4.24,185.51,185.32,4.24]
[1735320468920,0.88414445,185.5,185.32,4.24]
[1735320469121,2.7031,185.35,185.32,4.24]
[1735320471319,4.24,185.51,185.32,4.24]
[1735320471517,0.88405632,185.5,185.27,56.14]
[1735320471712,2.704,185.29,185.27,56.14]
[1735320471921,4.24,185.44,185.28,4.24]
[1735320472124,4.1496126,185.43,185.28,4.24]
[1735320472323,0.8843126,185.42,185.15,56.14]
[1735320472524,0.8843126,185.42,185.26,4.24]
[1735320472822,19.5853,185.43,185.26,4.24]
[1735320473023,0.88441904,185.42,185.26,4.24]
[1735320473524,0.88441904,185.42,185.12,4.7336]
[1735320473923,0.88441904,185.42,185.25,4.4501]
[1735320474327,0.88441904,185.42,185.25,0.2101]
[1735320474529,2.7044,185.26,185.25,0.2101]
[1735320481927,1.5448,185.37,185.25,0.2101]
[1735320482228,2.7042,185.28,185.25,0.2101]
[1735320482428,1.5448,185.37,185.25,0.2101]
[1735320482628,2.7044,185.27,185.25,0.2101]
[1735320482827,1.5448,185.37,185.25,0.2101]
[1735320483732,2.7033,185.34,185.25,0.2101]
[1735320483930,1.5448,185.37,185.25,0.2101]
[1735320485028,1.5448,185.37,185.25,2.9146]
[1735320485430,1.5448,185.37,185.25,0.2101]
[1735320488335,0.88445028,185.36,185.25,0.2101]
[1735320488529,2.7044,185.26,185.25,0.2101]
[1735320492734,1.6481,185.34,185.25,0.2101]
[1735320492935,2.7043,185.27,185.25,0.2101]
[1735320493135,1.6481,185.34,185.25,0.2101]
[1735320493534,2.7041,185.29,185.25,0.2101]
[1735320493735,1.6481,185.34,185.25,0.2101]
[1735320494836,1.6651,185.52,185.25,3.3751]
[1735320495033,2.7023,185.41,185.33,2.7033]
[1735320495232,1.6651,185.52,185.34,4.16]
[1735320495433,0.88396809,185.47,185.34,4.16]
[1735320495629,22.27123587,185.45,185.34,4.16]
[1735320496133,22.27123587,185.45,185.35,3.1666]
[1735320496330,12.74393587,185.45,185.43,2.7019]
[1735320496534,12.74393587,185.45,185.44,4.16]
[1735320496938,12.74393587,185.56,185.44,4.16]
[1735320497131,12.74393587,185.56,185.47,2.7013]
[1735320497132,2.7003,185.55,185.47,2.7013]
[1735320497327,12.74393587,185.56,185.44,4.16]
[1735320497533,12.74393587,185.56,185.35,3.1666]
[1735320497738,12.74393587,185.56,185.36,4.16]
[1735320498334,6.22215335,185.66,185.37,17.22232368]
[1735320498635,0.88295022,185.65,185.38,18.30119227]
[1735320498838,0.88295022,185.65,185.39,0.99229371]
[1735320499231,59.38996232,185.71,185.4,1.07874865]
[1735320499431,0.88285899,185.7,185.41,0.99217624]
[1735320499634,0.88285899,185.7,185.42,21.46863229]
[1735320499844,2.6991,185.63,185.43,1.07857412]
[1735320500142,3.1627,185.72,185.43,1.07857412]
[1735320500335,2.6988,185.65,185.56,2.7]
[1735320500539,3.1627,185.72,185.57,4.16]
[1735320500942,3.1627,185.72,185.57,6.8598]
[1735320500943,2.6985,185.67,185.57,6.8598]
[1735320501338,3.1627,185.72,185.57,4.16]
[1735320501636,3.1627,185.72,185.54,56.16]
[1735320501839,0.88248392,185.71,185.55,4.16]
[1735320502046,2.6975,185.74,185.65,2.6987]
[1735320502340,4.7722,185.78,185.56,1.07781849]
[1735320502341,4.7722,185.78,185.66,4.16]
[1735320502542,4.7722,185.78,185.67,4.16]
[1735320504337,2.6972,185.76,185.67,6.8584]
[1735320504536,3.1412,185.78,185.67,4.16]
[1735320504742,1.59,185.77,185.67,4.16]
[1735320505537,1.59,185.77,185.68,4.16]
[1735320505739,2.698,185.7,185.68,4.16]
[1735320505936,44.72873852,185.88,185.68,4.16]
[1735320506140,3.2064,185.85,185.68,4.16]
[1735320507035,3.2064,185.85,185.69,4.16]
[1735320507240,3.2064,185.85,185.7,4.16]
[1735320507438,3.2064,185.85,185.7,6.8579]
[1735320507849,2.6968,185.79,185.7,6.8579]
[1735320508342,3.2064,185.85,185.7,6.8579]
[1735320508641,2.697,185.77,185.7,4.16]
[1735320509144,2.6965,185.81,185.7,4.16]
[1735320509345,3.2064,185.85,185.7,4.16]
[1735320509742,2.6971,185.76,185.7,4.16]
[1735320509946,2.6971,185.76,185.71,4.16]
[1735320510147,3.2064,185.85,185.58,56.08]
[1735320510337,0.88215255,185.84,185.58,56.08]
[1735320510545,0.88215255,185.84,185.64,2.6988]
[1735320510740,0.88215255,185.84,185.65,4.16]
[1735320510947,2.6969,185.78,185.69,2.6981]
[1735320511144,2.6969,185.78,185.65,4.16]
[1735320511145,1.5428,185.83,185.65,4.16]
[1735320511947,0.88218425,185.82,185.65,4.16]
[1735320512146,1.5428,185.83,185.65,4.16]
[1735320512344,0.88210114,185.82,185.65,4.16]
[1735320512543,1.5428,185.83,185.65,4.16]
[1735320512738,1.5428,185.83,185.58,56.08]
[1735320512739,1.5428,185.83,185.66,4.12]
[1735320513144,2.6981,185.7,185.66,4.12]
[1735320513446,1.5428,185.83,185.67,4.12]
[1735320513650,2.6983,185.69,185.68,4.12]
[1735320514048,3.2741948,185.8,185.62,4.12]
[1735320514248,0.8824257,185.79,185.62,4.12]
[1735320514647,1.5755,185.78,185.62,4.12]
[1735320514947,0.88249722,185.77,185.62,4.12]
[1735320515251,0.88249722,185.77,185.6,0.23313]
[1735320515447,0.88249722,185.77,185.6,4.35313]
[1735320515751,2.6992,185.62,185.6,4.35313]
[1735320515951,4.12,185.73,185.6,4.35313]
[1735320516144,3.1527,185.72,185.6,4.35313]
[1735320517352,3.1527,185.72,185.6,0.23313]
[1735320517545,7.2727,185.72,185.6,0.23313]
[1735320517745,2.6992,185.62,185.6,0.23313]
[1735320518145,7.2727,185.72,185.6,0.23313]
[1735320518351,2.6993,185.61,185.6,0.23313]
[1735320520644,194.0,185.86,185.6,0.23313]
[1735320520848,1.6069,185.71,185.61,4.12]
[1735320521752,2.6992,185.62,185.61,4.12]
[1735320522544,1.6535,185.7,185.61,4.12]
[1735320523149,2.6987,185.66,185.61,4.12]
[1735320523852,1.6535,185.7,185.61,4.12]
[1735320524445,3.2741948,185.8,185.61,4.12]
[1735320524654,4.8155,185.85,185.61,4.12]
[1735320525048,2.6973,185.75,185.61,4.12]
[1735320525551,194.0,186.05,185.62,0.99124716]
[1735320525747,0.88180432,185.9,185.63,18.29858036]
[1735320525950,4.6898,185.95,185.64,2.06852232]
[1735320526150,2.6955,185.88,185.79,2.6966]
[1735320526345,4.6898,185.95,185.74,56.08]
[1735320526548,59.38996232,186.06,185.75,4.12]
[1735320526749,1.5268,186.0,185.83,2.696]
[1735320527051,1.5268,186.0,185.84,4.12]
[1735320527349,194.0,186.09,185.84,4.12]
[1735320527556,6.53061346,186.1,185.84,4.12]
[1735320527557,4.6996,186.08,185.84,4.12]
[1735320527951,21.0196,186.08,185.74,56.08]
[1735320528154,4.12,186.07,185.81,2.6963]
[1735320528353,4.12,186.07,185.82,4.12]
[1735320528354,20.44,186.07,185.82,4.12]
[1735320528551,4.6996,186.08,185.84,2.6959]
[1735320528751,4.6996,186.08,185.85,4.12]
[1735320528952,21.0196,186.08,185.85,4.12]
[1735320529153,4.12,186.06,185.85,4.12]
[1735320529353,3.86073871,185.91,185.85,4.12]
[1735320529551,1.16573871,185.91,185.85,4.12]
[1735320530351,2.6952,185.9,185.85,4.12]
[1735320530556,1.16573871,185.91,185.85,4.12]
[1735320532754,6.53061346,186.1,185.85,4.12]
[1735320532956,4.6874,186.08,185.85,4.12]
[1735320533256,2.694,185.98,185.89,2.6952]
[1735320533754,2.6941,185.97,185.87,2.6954]
[1735320533956,216.06612087,186.2,185.85,4.12]
[1735320534151,3.0667,186.13,185.86,1.07607876]
[1735320534353,0.88063112,186.12,185.86,1.07607876]
[1735320534749,2.6943,185.96,185.87,4.42]
[1735320534951,3.06625844,186.04,185.87,4.42]
[1735320535149,1.6242,186.03,185.87,4.42]
[1735320535551,2.6943,185.96,185.87,7.1154]
[1735320535951,3.082,186.02,185.87,7.1154]
[1735320536153,2.6947,185.93,185.86,1.07607876]
[1735320536350,3.082,186.02,185.87,4.42]
[1735320536554,0.88113133,186.01,185.76,56.02]
[1735320536754,0.88113133,186.01,185.82,2.6962]
[1735320537059,4.42,186.0,185.77,4.42]
[1735320537456,0.88136613,185.99,185.79,2.6966]
[1735320537756,0.88136613,185.99,185.77,4.42]
[1735320538056,2.6956,185.87,185.78,2.6967]
[1735320538257,4.42,186.0,185.78,2.6967]
[1735320538459,2.6955,185.88,185.79,2.6967]
[1735320538649,4.42,186.0,185.79,2.6967]
[1735320538852,0.8814059,185.99,185.79,2.6967]
[1735320539249,4.42,186.0,185.79,2.6967]
[1735320539454,2.6957,185.86,185.77,7.1169]
[1735320539655,20.74,186.0,185.77,7.1169]
[1735320539854,0.88148781,185.99,185.78,4.42]
[1735320540055,2.6961,185.83,185.78,4.42]
[1735320540250,4.42,185.93,185.77,0.2493]
[1735320540455,1.6804,185.92,185.77,0.2493]
[1735320540952,2.6966,185.8,185.77,0.2493]
[1735320541154,3.097,185.91,185.77,0.2493]
[1735320541354,2.6967,185.79,185.77,0.2493]
[1735320542660,19.417,185.91,185.66,4.55946866]
[1735320542857,210.32,185.89,185.54,29.20465256]
[1735320543061,0.88182697,185.88,185.55,4.42]
[1735320543264,2.6968,185.79,185.59,2.6995]
[1735320543562,3.1355,185.78,185.57,4.57704261]
[1735320543758,2.6983,185.68,185.59,2.6995]
[1735320544061,3.1355,185.78,185.58,4.57704261]
[1735320544254,0.88250166,185.77,185.58,4.42]
[1735320545259,2.6985,185.67,185.59,2.6995]
[1735320545456,3.1355,185.78,185.58,4.42]
[1735320545656,3.1355,185.78,185.55,4.57393429]
[1735320545657,0.88253069,185.77,185.59,4.42]
[1735320546555,2.6985,185.67,185.59,4.42]
[1735320547161,2.6986,185.66,185.59,4.42]
[1735320548058,2.6978,185.72,185.59,7.1195]
[1735320548253,1.5498,185.77,185.59,4.42]
[1735320548458,1.5498,185.77,185.52,4.58329584]
[1735320548655,1.5498,185.77,185.53,9.02329584]
[1735320548855,1.5498,185.77,185.53,10.10128861]
[1735320549058,1.5498,185.77,185.6,2.6993]
[1735320549059,2.6976,185.73,185.6,2.6993]
[1735320549266,1.5498,185.77,185.61,4.44]
[1735320549464,1.5498,185.77,185.62,4.44]
[1735320549659,1.5498,185.77,185.63,4.44]
[1735320549966,1.5498,185.77,185.63,7.139]
[1735320550165,1.5498,185.77,185.63,4.44]
[1735320550867,2.6982,185.69,185.63,4.44]
[1735320553968,2.6976,185.73,185.63,4.44]
[1735320554165,1.5498,185.77,185.63,4.44]
[1735320554367,0.88238341,185.76,185.63,4.44]
[1735320554566,2.6977,185.73,185.63,4.44]
[1735320554766,1.5498,185.77,185.63,4.44]
[1735320554966,0.88235196,185.76,185.63,4.44]
[1735320555568,2.6984,185.68,185.63,4.44]
[1735320556362,2.6984,185.67,185.63,4.44]
[1735320556757,2.6986,185.66,185.58,2.6996]
[1735320556962,1.5498,185.77,185.59,4.44]
[1735320557165,0.8824988,185.76,185.59,4.44]
[1735320557364,2.6987,185.66,185.59,4.44]
[1735320557564,1.5498,185.77,185.59,4.44]
[1735320557765,0.88244163,185.76,185.59,4.44]
[1735320557962,2.6984,185.67,185.61,2.6993]
[1735320558162,1.5498,185.77,185.59,4.44]
[1735320558362,0.88246129,185.76,185.59,4.44]
[1735320558563,2.6988,185.65,185.59,4.44]
[1735320558967,2.6988,185.65,185.58,2.6997]
[1735320559270,2.6988,185.65,185.6,4.44]
[1735320560567,2.6989,185.64,185.6,4.44]
[1735320561873,2.6989,185.64,185.61,4.4]
[1735320562167,4.4,185.74,185.54,1.07793467]
[1735320562366,0.88258449,185.73,185.55,4.4]
[1735320562569,0.88258449,185.73,185.52,4.4]
[1735320562865,2.7003,185.55,185.52,4.4]
[1735320564162,2.7005,185.53,185.41,0.2453]
[1735320564370,2.7005,185.53,185.51,4.4]
[1735320564566,2.7005,185.53,185.41,0.2453]
[1735320564771,2.7005,185.53,185.42,4.4]
[1735320564971,20.9536,185.67,185.41,0.2453]
[1735320565273,0.88327132,185.66,185.42,4.4]
[1735320565473,0.88327132,185.66,185.43,4.4]
[1735320565878,0.8833339,185.65,185.43,4.4]
[1735320566074,0.8833339,185.64,185.43,4.4]
[1735320566268,20.9536,185.67,185.43,4.4]
[1735320566269,0.8833339,185.63,185.43,4.4]
[1735320566469,0.8833339,185.62,185.44,4.4]
[1735320566670,4.4,185.61,185.44,4.4]
[1735320566872,5.2833339,185.6,185.44,4.4]
[1735320567068,4.6336,185.67,185.44,4.4]
[1735320567270,4.4,185.66,185.44,4.4]
[1735320567476,0.88314296,185.65,185.52,2.7006]
[1735320567679,0.88314296,185.65,185.53,4.4]
[1735320567864,4.6336,185.67,185.53,4.4]
[1735320568064,0.88294538,185.66,185.53,4.4]
[1735320568475,2.699,185.63,185.54,2.7002]
[1735320568665,4.6336,185.67,185.53,4.4]
[1735320569371,0.88286179,185.66,185.53,4.4]
[1735320569672,0.88286179,185.66,185.51,4.4]
[1735320569867,0.88286179,185.66,185.45,0.2481]
[1735320570068,2.7011,185.49,185.46,4.4]
[1735320570272,20.72,185.65,185.33,7.30116314]
[1735320570273,20.72,185.65,185.44,4.4]
[1735320570475,0.88328937,185.64,185.44,4.4]
[1735320571275,0.8834749,185.63,185.44,4.4]
[1735320571476,0.8834749,185.62,185.44,4.4]
[1735320571676,0.8834749,185.62,185.4,2.9504]
[1735320571677,2.7014,185.47,185.4,2.9504]
[1735320571876,214.72,185.65,185.4,2.9504]
[1735320571877,4.4,185.58,185.41,4.4]
[1735320572073,5.63047524,185.57,185.23,16.23]
[1735320572379,2.7018,185.44,185.42,4.4]
[1735320572581,2.7018,185.44,185.38,58.7826]
[1735320572772,2.7018,185.44,185.39,4.4]
[1735320574179,2.7018,185.44,185.38,58.7826]
[1735320574481,2.7018,185.44,185.4,4.4]
[1735320574777,9.147,185.57,185.4,4.4]
[1735320575179,4.747,185.57,185.4,4.4]
[1735320575975,4.747,185.57,185.41,2.7022]
[1735320575976,2.7014,185.47,185.41,2.7022]
[1735320576674,2.7015,185.46,185.41,2.7022]
[1735320577076,2.7015,185.46,185.4,4.4]
[1735320578780,2.7016,185.45,185.4,4.4]
[1735320578974,4.747,185.57,185.4,4.4]
[1735320579674,2.7017,185.45,185.4,7.1023]
[1735320580083,2.7017,185.45,185.4,4.4]
[1735320580273,2.702,185.43,185.4,4.4]
[1735320580471,4.747,185.57,185.4,4.4]
[1735320580775,2.7022,185.41,185.38,56.08]
[1735320580978,2.7022,185.41,185.39,4.4]
[1735320581675,4.747,185.57,185.39,4.4]
[1735320581877,0.88353999,185.56,185.39,4.4]
[1735320582380,4.747,185.57,185.39,4.4]
[1735320582381,2.7019,185.44,185.39,4.4]
[1735320582873,4.747,185.57,185.39,4.4]
[1735320583073,0.88353461,185.56,185.27,0.2494]
[1735320583280,20.72,185.55,185.28,9.01326827]
[1735320583481,0.88353461,185.54,185.29,4.61326827]
[1735320583679,2.7028,185.38,185.32,2.7035]
[1735320583978,2.7028,185.38,185.31,4.61326827]
[1735320584479,2.7028,185.38,185.3,4.4]
[1735320584881,2.7028,185.38,185.33,2.7032]
[1735320585278,2.7028,185.38,185.34,4.4]
[1735320585671,2.7028,185.38,185.34,7.1032]
[1735320587572,2.7028,185.38,185.35,4.16]
[1735320589284,2.7025,185.39,185.35,4.16]
[1735320589680,2.7025,185.39,185.35,6.863]
[1735320590583,2.7024,185.4,185.35,6.863]
[1735320591481,4.16,185.52,185.35,4.16]
[1735320591675,16.32,185.56,185.38,2.7026]
[1735320591876,5.0436806,185.55,185.38,2.7026]
[1735320592083,0.8836806,185.54,185.38,2.7026]
[1735320592283,2.702,185.43,185.38,2.7026]
[1735320593083,4.16,185.55,185.38,2.7026]
[1735320593289,2.7021,185.42,185.38,2.7026]
[1735320594489,2.7018,185.45,185.35,4.16]
[1735320594896,2.7017,185.45,185.4,2.7023]
[1735320595092,2.7017,185.45,185.41,4.16]
[1735320595488,2.7019,185.44,185.41,4.16]
[1735320596291,4.16,185.56,185.41,4.16]
[1735320596588,2.7021,185.42,185.41,4.16]
[1735320596792,4.16,185.56,185.41,4.16]
[1735320596991,0.88363302,185.55,185.41,4.16]
[1735320597595,2.7021,185.42,185.41,4.16]
[1735320597799,4.16,185.56,185.3,4.61439443]
[1735320598003,0.88368301,185.55,185.31,4.16]
[1735320598198,2.7025,185.39,185.34,2.7032]
[1735320598497,4.16,185.5,185.31,4.16]
[1735320598698,2.42827657,185.49,185.31,4.16]
[1735320598898,1.5444,185.49,185.31,4.16]
[1735320599095,4.18819973,185.48,185.32,4.16]
[1735320599296,0.88389973,185.47,185.32,4.16]
[1735320599900,0.88389973,185.47,185.33,6.8634]
[1735320600204,2.7027,185.38,185.33,6.8634]
[1735320600798,3.3043,185.48,185.33,6.8634]
[1735320600995,0.88387833,185.47,185.33,4.16]
[1735320601191,0.88389721,185.46,185.2,58.40930513]
[1735320601388,2.7035,185.32,185.24,8.79311293]
[1735320601594,2.7035,185.32,185.24,4.16]
[1735320601794,2.7035,185.32,185.28,2.7041]
[1735320603002,2.7034,185.33,185.28,2.7041]
[1735320604001,2.7031,185.36,185.31,2.7036]
[1735320604199,25.06942771,185.46,185.32,4.16]
[1735320604400,0.88399886,185.45,185.32,4.16]
[1735320604696,3.00330684,185.46,185.32,4.16]
[1735320605497,1.76775666,185.47,185.33,4.87594981]
[1735320605696,1.76775666,185.47,185.34,4.62584981]
[1735320606000,2.7015,185.46,185.41,2.7021]
[1735320606192,2.7015,185.46,185.42,4.16]
[1735320606396,1.76775666,185.47,185.43,2.7019]
[1735320606900,1.76775666,185.47,185.42,4.16]
[1735320607101,4.46915666,185.47,185.42,4.16]
[1735320607498,1.76775666,185.47,185.42,4.16]
[1735320608092,1.76775666,185.47,185.46,2.7015]
[1735320608295,1.76775666,185.47,185.42,4.16]
[1735320608995,3.3069,185.52,185.42,4.16]
[1735320608996,2.7019,185.43,185.42,4.16]
[1735320609499,3.3069,185.52,185.42,4.16]
[1735320609703,2.7013,185.48,185.42,6.862]
[1735320610300,2.701,185.49,185.42,4.16]
[1735320610501,3.3069,185.52,185.42,4.16]
[1735320610893,3.3069,185.52,185.36,56.14]
[1735320610894,0.88357871,185.51,185.36,56.14]
[1735320611093,0.88357871,185.51,185.3,29.20465256]
[1735320611094,5.04357871,185.51,185.3,29.20465256]
[1735320611298,0.88357871,185.5,185.31,4.16]
[1735320611500,0.88357871,185.5,185.32,4.64128476]
[1735320611698,0.88378211,185.49,185.31,4.16]
[1735320611896,2.7021,185.42,185.33,4.64174042]
[1735320612096,59.38996232,185.5,185.31,4.16]
[1735320612302,59.38996232,185.5,185.32,4.64172143]
[1735320612498,4.16,185.51,185.33,4.64172143]
[1735320612697,0.88370633,185.5,185.25,29.20465256]
[1735320612903,0.88370633,185.5,185.26,8.80490421]
[1735320613106,0.88370633,185.5,185.27,4.64490421]
[1735320613405,0.88370633,185.5,185.28,4.64832572]
[1735320613609,0.88370633,185.5,185.32,2.7034]
[1735320613797,0.88370633,185.5,185.33,4.16]
[1735320614003,2.7027,185.38,185.33,4.16]
[1735320614203,7.31694524,185.5,185.33,4.16]
[1735320614399,0.88386514,185.49,185.25,4.65757314]
[1735320614600,0.88386514,185.49,185.26,8.81757314]
[1735320614799,0.88386514,185.49,185.27,4.65757314]
[1735320615005,17.40241206,185.49,185.28,2.7041]
[1735320615207,2.7032,185.35,185.26,4.16]
[1735320615398,16.51854692,185.49,185.27,4.66238302]
[1735320615706,59.38996232,185.45,185.26,4.16]
[1735320615901,9.84904441,185.44,185.24,0.2517]
[1735320616109,0.88409917,185.43,185.27,4.16]
[1735320616408,4.08479917,185.43,185.27,4.16]
[1735320616706,0.88409917,185.42,185.27,4.16]
[1735320616904,2.7036,185.32,185.27,4.16]
[1735320617697,59.38996232,185.42,185.27,4.16]
[1735320617903,0.88424616,185.41,185.27,4.16]
[1735320618304,2.7026,185.39,185.29,2.7038]